Cogmind - Beta 13 X1 @@@ ROGUE MODE // 2023.06.22 @ 18:54:31 Player: Plexion Result: Destroyed by JW-SUG(R) with Subdweller Laser Performance ------------- Evolutions (0) 0 Regions Visited (2) 400 Robots Destroyed (13) 65 Value Destroyed (377) 377 Prototype IDs (0) 0 Alien Tech Used (0) 0 Bonus (0) 0 TOTAL SCORE: 842 Bonus ------- None Cogmind --------- Core Integrity 0/250 Matter 300/300 Energy 100/100 System Corruption 0% Temperature Cool (6) Movement Rolling (110) Location -10/Subcaves Parts ------- > --- POWER (1) -------- (None) > --- PROPULSION (2) --- Subdweller Monowheel Subdweller Monowheel > --- UTILITY (2) ------ Small Storage Unit Light Armor Plating > --- WEAPON (2) ------- Subdweller Laser Light Assault Rifle > --- INVENTORY (8) ---- Light Ion Engine Subdweller Laser Light Assault Rifle Light Assault Rifle Scrap Shield Fragment (49) Scrap Shield Fragment (45) Peak State ------------ > --- POWER ------------ Subdweller Power Source > --- PROPULSION ------- Light Treads Subdweller Monowheel > --- UTILITY ---------- Small Storage Unit Subdweller Optics > --- WEAPON ----------- Subdweller Laser Subdweller Laser > --- INVENTORY -------- Light Ion Engine Light Assault Rifle Light Assault Rifle Light Assault Rifle Scrap Shield Fragment Scrap Shield Fragment [Rating: 12] Favorites ----------- Power Ion Engine Engine Ion Engine Propulsion Light Treads Treads Light Treads Wheel Subdweller Monowheel Utility Small Storage Unit Device Subdweller Optics Storage Small Storage Unit Protection Light Armor Plating Weapon Light Assault Rifle Energy Gun Subdweller Laser Ballistic Gun Light Assault Rifle Build | -11 -10 -10 ------- Run | Jun Mat Sub Slots Evolved . | . . . Power . | . . . Propulsion . | . . . Utility . | . . . Weapon . | . . . Parts Attached 16 | 6 . 10 Power 2 | 1 . 1 Engine 2 | 1 . 1 Core . | . . . Reactor . | . . . Propulsion 4 | 2 . 2 Treads 2 | 2 . . Leg . | . . . Wheel 2 | . . 2 Hover . | . . . Flight . | . . . Utility 3 | 1 . 2 Device 1 | . . 1 Storage 1 | 1 . . Processor . | . . . Hackware . | . . . Protection 1 | . . 1 Artifact . | . . . Weapon 7 | 2 . 5 Energy Gun 2 | . . 2 Energy Cannon . | . . . Ballistic Gun 5 | 2 . 3 Ballistic Cannon . | . . . Launcher . | . . . Special Weapon . | . . . Impact Weapon . | . . . Slashing Weapon . | . . . Piercing Weapon . | . . . Special Melee Weapon . | . . . Unidentified Prototypes . | . . . Parts Lost 8 | . . 8 Power 2 | . . 2 Propulsion 2 | . . 2 Utility 1 | . . 1 Weapon 3 | . . 3 Highest Loss Streak 3 | . . 3 To Critical Strikes . | . . . Average Slot Usage (%) 85 | . 85 85 Engine 11 | . 14 9 Treads 21 | . 28 14 Wheel 4 | . . 9 Device 2 | . . 4 Storage 14 | . 14 14 Protection 2 | . . 5 Energy Gun 5 | . . 12 Ballistic Gun 22 | . 28 15 Naked Turns . | . . . Heaviest Build 21 | 13 13 21 Greatest Support 40 | 40 40 40 Greatest Overweight (x) 1 | . . 1 Average Overweight (x) . | . . . Largest Inventory Capacity 8 | 8 8 8 Average Capacity 7 | 6 8 8 Most Carried 6 | 2 4 6 Average Carried 3 | 1 2 5 Final Capacity 8 | 8 8 8 Final Carried 6 | 2 4 6 Class Distribution -------------------- 72% | Mutant 25% | Scavenger-Mutant Dominant Class ---------------- Mutant | -10/Materials Scavenger-Mutant | -10/Subcaves Resources | -11 -10 -10 ----------- Run | Jun Mat Sub Matter Collected 503 | 244 120 139 Remotely . | . . . Salvage Created 485 | . 256 229 Parts 26 | . 15 11 Haulers Intercepted . | . . . Recyclers Shooed 1 | . 1 . Parts Field Recycled . | . . . Retrieved Matter . | . . . Parts Self-Destructed 6 | . . 6 Prevented . | . . . Kills | -11 -10 -10 ------- Run | Jun Mat Sub Combat Hostiles Destroyed 12 | . 7 5 Guns 12 | . 7 5 Classes Destroyed 5 | . 3 2 Recycler 1 | . 1 . Swarmer 3 | . 3 . Grunt 4 | . 4 . Sentry 1 | . . 1 Subdweller 4 | . . 4 Best Kill Streak 4 | . 4 2 Combat Bots Only 3 | . 3 2 Max Kills in Single Turn 1 | . 1 1 Gunslinging . | . . . Exploded . | . . . Melee . | . . . Uniques/NPCs Destroyed . | . . . Combat | -11 -10 -10 -------- Run | Jun Mat Sub Damage Taken 1132 | . 263 869 Core 264 | . 32 232 Absorbed by Shields . | . . . Core Remaining (%) 100 | 100 . . Volleys Fired 67 | . 26 41 Largest 2 | . 2 2 Hottest 120 | . 40 120 Shots Fired 133 | . 52 81 Gun 133 | . 52 81 Cannon . | . . . Launcher . | . . . Special . | . . . Kinetic 108 | . 52 56 Thermal 25 | . . 25 Explosive . | . . . Electromagnetic . | . . . Robot Hit Streak 33 | . 8 33 Robot Miss Streak 4 | . 4 2 Penetration Max . | . . . Secondary Targets 1 | . 1 . Max Gunslinging Chain 1 | . 1 . Shots Hit Robots 89 | . 30 59 Core Hits 26 | . 13 13 Critical Kills . | . . . Critical Parts Destroyed 1 | . 1 . Critical Strikes 2 | . 1 1 Destroy 2 | . 1 1 Melee Attacks . | . . . Impact . | . . . Slashing . | . . . Piercing . | . . . Sneak Attacks . | . . . Combat Hostiles . | . . . Follow-up Attacks . | . . . Damage Inflicted 1035 | . 333 702 Guns 1035 | . 333 702 Cannons . | . . . Explosions . | . . . Melee . | . . . Ramming . | . . . Kinetic 712 | . 333 379 Thermal 323 | . . 323 Explosive . | . . . Electromagnetic . | . . . Impact . | . . . Slashing . | . . . Piercing . | . . . Highest Corruption . | . . . Average Corruption . | . . . Corruption Purged . | . . . Corruption Blocked . | . . . Overload Shots . | . . . Overflow Damage . | . . . Projectiles . | . . . Explosions . | . . . Melee . | . . . Knockbacks . | . . . Impact . | . . . Kinetic . | . . . Secondary . | . . . Self-Inflicted Damage . | . . . Shots . | . . . Rammed . | . . . Targets Rammed . | . . . Kicked . | . . . Crushed . | . . . Highest Temperature 57 | . 12 57 Average Temperature 20 | . 6 27 Received Heat Transfer 270 | . 90 180 Siege Activations . | . . . Robots Corrupted . | . . . Combat Hostiles . | . . . Parts Fried . | . . . Impact Corruptions . | . . . Robots Melted . | . . . Combat Hostiles . | . . . Parts Melted 3 | . . 3 Heat Transferred 400 | . . 400 Parts Sabotaged . | . . . Parts Stolen . | . . . Parts Stripped . | . . . Power Chain Reactions . | . . . Missiles Intercepted . | . . . Alert | -11 -10 -10 ------- Run | Jun Mat Sub Peak Influence 176 | . 176 . Initial . | . . . Average 33 | . 37 . Maximum Alert Level . | . . . Low Security (%) 100 | 100 100 . Level 1 . | . . . Level 2 . | . . . Level 3 . | . . . Level 4 . | . . . Level 5 . | . . . High Security . | . . . Max Security . | . . . Squads Dispatched 2 | . 2 . Investigation 1 | . 1 . Extermination . | . . . Reinforcement 1 | . 1 . Assault . | . . . Garrison . | . . . Intercept . | . . . Searches Triggered . | . . . Construction Impeded . | . . . Haulers Reinforced . | . . . Active Scanning Responses . | . . . Cargo Convoy Interrupts . | . . . Stealth | -11 -10 -10 --------- Run | Jun Mat Sub Distress Signals 3 | . 3 . Communications Jammed . | . . . Distress Signals . | . . . Times Spotted 17 | . 11 6 Peak Tracking Total 4 | . 4 2 Tactical Retreats . | . . . Traps | -11 -10 -10 ------- Run | Jun Mat Sub Traps Triggered 1 | . 1 . Indirectly . | . . . Trap Hack Attempts . | . . . Triggered . | . . . Disarmed . | . . . Reprogrammed . | . . . Reused . | . . . Traps Extracted . | . . . Installed . | . . . Triggered 3 | . . 3 Machines | -11 -10 -10 ---------- Run | Jun Mat Sub Machines Disabled . | . . . Max in Single Turn . | . . . Machines Repaired . | . . . Machines Sabotaged . | . . . Overloaded Fab Kills . | . . . Hacking | -11 -10 -10 --------- Run | Jun Mat Sub Machines Accessed 2 | . 2 . Terminals 2 | . 2 . Fabricators . | . . . Repair Stations . | . . . Recycling Units . | . . . Scanalyzers . | . . . Garrison Access . | . . . Total Hacks 3 | . 3 . Successful 1 | . 1 . Failed 2 | . 2 . Catastrophic . | . . . Database Lockouts . | . . . Manual 1 | . 1 . Terminals 3 | . 3 . Fabricators . | . . . Repair Stations . | . . . Recycling Units . | . . . Scanalyzers . | . . . Garrison Access . | . . . Terminal Hacks 1 | . 1 . Zone Layout 1 | . 1 . Fabricator Hacks . | . . . Repair Station Hacks . | . . . Recycling Unit Hacks . | . . . Scanalyzer . | . . . Garrison Access Hacks . | . . . Unauthorized Hacks . | . . . Terminals . | . . . Fabricators . | . . . Repair Stations . | . . . Recycling Units . | . . . Scanalyzers . | . . . Garrison Access . | . . . Data Cores Recovered . | . . . Used . | . . . Hacking Detections 2 | . 2 . Full Trace Events . | . . . Feedback Events . | . . . Feedback Blocked . | . . . Robot Schematics Acquired . | . . . Robots Built . | . . . Authchips . | . . . Time . | . . . Total Robot Build Rating . | . . . Part Schematics Acquired . | . . . Parts Built . | . . . Authchips . | . . . Time . | . . . Total Part Build Rating . | . . . Parts Repaired . | . . . Time . | . . . Parts Recycled . | . . . Recycled Matter . | . . . Retrieved Matter . | . . . Retrieved Components . | . . . Parts Scanalyzed . | . . . Part Schematics Acquired . | . . . Parts Damaged . | . . . Bothacking | -11 -10 -10 ------------ Run | Jun Mat Sub Used RIF Installer . | . . . Robots Hacked . | . . . Non-combat . | . . . Combat . | . . . Robot Hacks Applied . | . . . Relay Couplers Released . | . . . Fabnet Peak Effective % . | . . . Robots Rewired . | . . . Allies Hacked . | . . . Hacks Repelled . | . . . Allies | -11 -10 -10 -------- Run | Jun Mat Sub Total Allies . | . . . Largest Group . | . . . Highest-Rated Group . | . . . Highest-Rated Ally . | . . . Total Orders . | . . . Ally Attacks . | . . . Total Damage . | . . . Kills . | . . . Allies Corrupted . | . . . Allies Melted . | . . . Intel | -11 -10 -10 ------- Run | Jun Mat Sub Robot Analysis Total . | . . . Derelict Logs Recovered . | . . . Drone Launches . | . . . Drone Recoveries . | . . . Exploration | -11 -10 -10 ------------- Run | Jun Mat Sub Turns Passed 1290 | 81 644 565 Spaces Moved 527 | 47 191 289 Core 4 | 4 . . Treads 363 | 43 191 129 Legs . | . . . Wheels 160 | . . 160 Hover . | . . . Flight . | . . . Fastest Speed 50 | 50 160 110 Average Speed 145 | 150 160 134 Slowest Speed 160 | 160 160 160 Overloaded Moves . | . . . Propulsion Burnouts . | . . . Robots Hopped . | . . . Cave-ins Triggered . | . . . Exploration Rate (%) 18 | 4 32 20 Regions Visited 2 Branch Regions 1 Pre-discovered Areas . | . . . Known Exits Taken . | . . . Unknown Exits Taken 2 | 1 1 . Scrap Searched 1 | . . 1 Spaces Dug . | . . . Terrain Destroyed . | . . . Melee . | . . . Projectile . | . . . AOE . | . . . Terrain Rammed . | . . . Walls Destroyed . | . . . Machines Disabled . | . . . Actions | -11 -10 -10 --------- Run | Jun Mat Sub Total 927 | 54 483 390 Wait 309 | . 265 44 Move 525 | 46 190 289 Hop . | . . . Pick Up 10 | 2 2 6 Fast Attach 10 | 6 . 4 Attach 4 | . . 4 Detach . | . . . Swap 2 | . . 2 Drop . | . . . Fire 67 | . 26 41 Melee . | . . . Ram . | . . . Kick . | . . . Crush . | . . . Escape Stasis . | . . . Rewire . | . . . Trap . | . . . Miscellaneous . | . . . Route ------- -11/Junkyard -10/Materials -10/Subcaves History --------- Turn | Location | Event 3 | -11/Junkyard | Discovered new exit (range 16) 82 | -11/Junkyard | Entered Materials 311 | -10/Materials | Build established: Mutant 702 | -10/Materials | Discovered new exit (range 9) 726 | -10/Materials | Entered Subcaves 865 | -10/Subcaves | Core integrity fell below 50% 1016 | -10/Subcaves | Shifting Twisted Machinery released Sub. Power Source 1155 | -10/Subcaves | Ambushed by Subdwellers from Twisted Machinery 1167 | -10/Subcaves | Core integrity fell below 20% 1204 | -10/Subcaves | A swath of the cavern ceiling suddenly collapsed 1208 | -10/Subcaves | Lost 3 parts (1p1n1w) 1291 | -10/Subcaves | Destroyed by JW-SUG(R) with Subdweller Laser Last Messages --------------- 01070_ Acquired 19 matter. 01071_ Imp. Ion Engine fries itself beyond repair. 01072_ Acquired Lgt. Armor Plating. 01155_ OI-5J2(R) emerges from the Twisted Machinery. 01169_ Lgt. Treads destroyed. 01171_ TB-6E5(R) destroyed. 01173_ Sub. Power Source destroyed. 01177_ Sub. Laser destroyed. 01184_ OI-5J2(R) destroyed. 01189_ Acquired 13 matter. 01193_ Acquired Sub. Monowheel. 01194_ Acquired 10 matter. 01198_ Acquired Sub. Laser. 01204_ 37 Matter crushed. 01204_ Scrap Shield Fragment crushed. 01204_ Sub. Power Source crushed. 01204_ 42 Matter crushed. A swath of the cavern ceiling suddenly collapses. 01270_ Acquired 4 matter. 01278_ JW-SUG(R): "WEHOME!" Map ----- +----------------------------------------------------+ | ????????????????????????????????????????????? | | ????????????????????????????????????????????? | | ????????????????????????????????????????????? | | ????????????????????????????????????????????? | | ????????????????????????????????????????????? | | ????????????????????????????????????????????? | | ????????????????????????????????????????????? | | ????????????????????????????????????????????? | | ????????????????????????????????????????????? | | ??????????????? "???????????????????????????? | | ??????????????? ??????#???????????????????? | | ??????????????? ?????# ??????????????????? | | ???????????????? ???## ??????????????????? | | ?????????????????# #?## ??????????????????? | | ????????????? ??# ## ??????????????????? | | ????????????? ## ??????????????????? | | ??????????????" ??????????????????? | | ?????????????? " ??????????????????? | | ?????????????? " ##????????????????? | | ?????????????????# ###??????????????? | | ?????????????????# ##?????????????? | | ????????????????# ### #?????????????? | | ???????????????# ????????# R #?????????????? | | ?????????????????????????# ##?????????????? | | ????????????????????????## #??????????????? | | ????????????????????????#@ ##??????????????? | | ????????????????????????# #???????????????? | | ???????????????????????## #???????????????? | | ??????????????????????##%# #???????????????? | | ???????????????######## # ##???????????????? | | ???????????????# """ ## #????????????????? | | ???????????????#""" ### #????????????????? | | ???????????????#" # # ## #????????????????? | | ???????????????# " #### ## #????????????????? | | ??????????????# " ??? ## ###??????????????? | | ??????????????## ???### #??????????????? | | ???????????????##" ### # ##?????????????? | | ????????????????#""#??#" #?????????????? | | ????????????????#""#??##"# #?????????????? | | ????????????????##"#??"### " #?????????????? | | ?????????????????#"#??#"###"###?????????????? | | ?????????????????"" ###"#"##""#?????????????? | | ????????????????##"##"#"#"""###?????????????? | | ????????????????# ""#"#""#""##??????????????? | | ????????????????# #"#"#"######??????????????? | | ?????????????????####"""# #???????????????? | | ?????????????????##"""""# ##??????????????? | | ?????????????????###" ### #??????????????? | | ?????????????????###""# #??????????????? | | ??????????????????##""## #??????????????? | +----------------------------------------------------+ Best States ------------- Heat Dissipation 25 Energy Generation 15 Energy Capacity 250 Matter Stores 300 Matter Capacity 300 Sight Range 21 Terrain Scan Density 10 Armor Coverage 150 Evasion (%) 40 Recoil Reduction 2 Item Schematics ----------------- None Robot Schematics ------------------ None Fabricated ------------ Nothing Alien Tech Used ----------------- None Achievements -------------- None Challenges ------------ None Game ------ Seed RefineryMatterGun Manual? 0 Play Time 00:07:13 Cumulative 408.6 hours Start 2023.06.22 @ 18:49:16 End 2023.06.22 @ 18:54:31 Sessions 1 Manual Loads 0 Difficulty Rogue Special Mode None Game No. 491 Rogue 404 Adventurer 87 Explorer 0 Win Type - Total 21 Types 7/0/12/1/1/0/0/0/0 Lore% 84 Gallery% 90 Achievement% 73 Wizard Run 0 Options --------- ASCII 0 Keyboard 1 Movement Numpad Keybinds 0 Fullscreen 1 Font 18/SmallcapsGlow Map View 76x50 Tactical HUD 1 Map Filters NONE Filters NONE Steam 1 RUN: dd27c154-7ff2-4059-ad41-5869da69b9ef